Cogmind - Beta 9.6 @@@ ROGUE MODE // 2020.05.11 @ 17:54:09 Player: Kyle Result: Destroyed by G-47 Trooper with Particle Gun Performance ------------- Evolutions (2) 1000 Regions Visited (5) 1000 Robots Destroyed (39) 195 Value Destroyed (915) 915 Prototype IDs (2) 40 Alien Tech Used (0) 0 Bonus (-54) -54 TOTAL SCORE: 3096 Bonus ------- Follower Combat Kills 123 Friendly Fire -177 Cogmind --------- Core Integrity 0/550 Matter 485/500 Energy 468/500 System Corruption 0% Temperature Cool (18) Movement Core (450) Ox8 Location -8/Materials Parts ------- > --- POWER (2) -------- (None) > --- PROPULSION (3) --- (None) > --- UTILITY (4) ------ Large Storage Unit High-capacity Battery High-capacity Matter Pod Advanced Signal Interpreter > --- WEAPON (2) ------- Power Maul > --- INVENTORY (10) --- Light Nuclear Core Light Nuclear Core Reinforced Deuterium Engine Light Fission Core Peak State ------------ > --- POWER ------------ Light Nuclear Core Light Nuclear Core > --- PROPULSION ------- Aluminum Leg Aluminum Leg Aluminum Leg > --- UTILITY ---------- Improved Heat Sink Large Storage Unit Core Shielding Hacking Suite > --- WEAPON ----------- Particle Gun Pulse Rifle > --- INVENTORY -------- Light Nuclear Core Light Nuclear Core Reinforced Deuterium Engine Light Fission Core High-capacity Battery High-capacity Matter Pod Improved Terrain Scan Processor Beam Rifle [Rating: 24] Favorites ----------- Power Ion Engine Engine Ion Engine Power Core Light Nuclear Core Propulsion Compact Wheel Leg Aluminum Leg Wheel Compact Wheel Utility Large Storage Unit Device Heat Sink Storage Large Storage Unit Processor Advanced Signal Interpreter Hackware Hacking Suite Protection Light Armor Plating Weapon Assault Rifle Energy Gun Pulse Rifle Ballistic Gun Assault Rifle Ballistic Cannon Assault Cannon Impact Weapon Power Maul Build | -11 -10 -10 -10 -9 -8 ------- Run | Scr Mat Min Exi Min Mat Slots Evolved 4 | . . . . . 4 Power 1 | . . . . . 1 Propulsion 1 | . . . . . 1 Utility 2 | . . . . . 2 Weapon . | . . . . . . Parts Attached 44 | 6 1 2 2 8 25 Power 8 | 1 . 1 1 . 5 Engine 5 | 1 . 1 1 . 2 Core 3 | . . . . . 3 Reactor . | . . . . . . Propulsion 11 | 2 . . . 3 6 Treads . | . . . . . . Leg 4 | . . . . . 4 Wheel 7 | 2 . . . 3 2 Hover . | . . . . . . Flight . | . . . . . . Utility 14 | 1 1 . 1 3 8 Device 4 | . . . . 1 3 Storage 4 | 1 . . 1 . 2 Processor 1 | . . . . . 1 Hackware 1 | . . . . . 1 Protection 4 | . 1 . . 2 1 Artifact . | . . . . . . Weapon 11 | 2 . 1 . 2 6 Energy Gun 6 | 1 . . . 1 4 Energy Cannon . | . . . . . . Ballistic Gun 3 | 1 . . . 1 1 Ballistic Cannon 1 | . . 1 . . . Launcher . | . . . . . . Special Weapon . | . . . . . . Impact Weapon 1 | . . . . . 1 Slashing Weapon . | . . . . . . Piercing Weapon . | . . . . . . Special Melee Weapon . | . . . . . . Unidentified Prototypes . | . . . . . . Parts Lost 25 | . . . . 5 20 Power 5 | . . . . . 5 Propulsion 10 | . . . . 3 7 Utility 5 | . . . . 1 4 Weapon 5 | . . . . 1 4 Highest Loss Streak 9 | . . . . 2 9 Average Slot Usage (%) 94 | . 93 99 99 93 92 Engine 12 | . 14 14 14 14 6 Core 2 | . . . . . 10 Leg 3 | . . . . . 13 Wheel 21 | . 28 28 28 22 8 Device 2 | . . . . . 8 Storage 12 | . 14 14 13 14 9 Protection 12 | . 8 14 14 13 13 Energy Gun 7 | . 14 4 . 5 13 Ballistic Gun 11 | . 14 14 14 14 3 Ballistic Cannon 5 | . . 8 14 8 . Naked Turns . | . . . . . . Heaviest Build 42 | 11 14 19 31 32 42 Greatest Support 42 | 32 32 32 32 32 42 Greatest Overweight (x) 10 | . . . . 10 8 Average Overweight (x) . | . . . . 1 . Largest Inventory Capacity 10 | 6 6 6 10 10 10 Average Capacity 8 | 5 6 6 8 10 10 Most Carried 10 | 4 6 6 8 10 10 Average Carried 7 | 2 4 5 7 8 7 Final Capacity 10 | 6 6 6 10 10 10 Final Carried 10 | 3 6 6 8 10 4 Class Distribution -------------------- 78% | Mutant 21% | Scavenger-Mutant Dominant Class ---------------- Mutant | -10/Materials Mutant | -10/Mines Mutant | -10/Exiles Mutant | -9/Mines Scavenger-Mutant | -8/Materials Resources | -11 -10 -10 -10 -9 -8 ----------- Run | Scr Mat Min Exi Min Mat Matter Collected 1087 | 263 69 11 33 464 247 Remotely . | . . . . . . Salvage Created 1333 | 95 299 . . 464 475 Parts 84 | 1 13 . . 37 33 Haulers Intercepted . | . . . . . . Recyclers Shooed 2 | . . 1 . . 1 Parts Field Recycled . | . . . . . . Retrieved Matter . | . . . . . . Parts Self-Destructed . | . . . . . . Prevented . | . . . . . . Kills | -11 -10 -10 -10 -9 -8 ------- Run | Scr Mat Min Exi Min Mat Combat Hostiles Destroyed 27 | . 3 . . 13 11 Guns 23 | . 3 . . 9 11 Cannons 4 | . . . . 4 . Classes Destroyed 8 | 1 2 . . 3 2 Builder 1 | . . . . 1 . Tunneler 1 | . . . . 1 . Recycler 5 | 1 1 . . 3 . Operator 1 | . . . . . 1 Watcher 3 | . 2 . . . 1 Swarmer 13 | . . . . 10 3 Grunt 13 | . 3 . . 4 6 Sentry 2 | . . . . . 2 Best Kill Streak 6 | 1 3 . . 6 3 Combat Bots Only 6 | . 1 . . 6 3 Max Kills in Single Turn 1 | 1 1 . . 1 1 Gunslinging . | . . . . . . Exploded . | . . . . . . Melee . | . . . . . . Uniques/NPCs Destroyed . | . . . . . . Combat | -11 -10 -10 -10 -9 -8 -------- Run | Scr Mat Min Exi Min Mat Damage Taken 2789 | . 133 6 . 737 1913 Core 720 | . 34 6 . 123 557 Absorbed by Shields . | . . . . . . Core Remaining (%) 67 | 100 . . . 34 . Volleys Fired 113 | 1 20 1 . 45 46 Largest 2 | 2 2 2 . 2 2 Hottest 128 | 60 60 60 . 88 128 Shots Fired 224 | 2 40 2 . 91 89 Gun 191 | 2 40 2 . 58 89 Cannon 33 | . . . . 33 . Launcher . | . . . . . . Special . | . . . . . . Kinetic 120 | 1 20 1 . 79 19 Thermal 76 | . . . . 12 64 Explosive . | . . . . . . Electromagnetic 28 | 1 20 1 . . 6 Robot Hit Streak 10 | 1 6 2 . 6 10 Robot Miss Streak 4 | 1 4 1 . 4 4 Penetration Max . | . . . . . . Secondary Targets 5 | . . . . 3 2 Max Gunslinging Chain 1 | . . . . 1 1 Shots Hit Robots 140 | 1 21 1 . 49 68 Core Hits 62 | 1 11 1 . 23 26 Critical Hits 2 | . . . . 1 1 Critical Kills . | . . . . . . Critical Parts Destroyed 2 | . . . . 1 1 Melee Attacks 4 | . . . . . 4 Impact 4 | . . . . . 4 Slashing . | . . . . . . Piercing . | . . . . . . Sneak Attacks . | . . . . . . Combat Hostiles . | . . . . . . Follow-up Attacks . | . . . . . . Damage Inflicted 2307 | 15 301 27 . 887 1077 Guns 1756 | 15 301 27 . 442 971 Cannons 445 | . . . . 445 . Explosions . | . . . . . . Melee 106 | . . . . . 106 Ramming . | . . . . . . Kinetic 1205 | . 153 12 . 818 222 Thermal 753 | . . . . 69 684 Explosive . | . . . . . . Electromagnetic 243 | 15 148 15 . . 65 Impact 106 | . . . . . 106 Slashing . | . . . . . . Piercing . | . . . . . . Highest Corruption 7 | . . 1 1 7 . Average Corruption 3 | . . 1 1 4 . Corruption Purged . | . . . . . . Effects 27 | . . 2 2 23 . Message Errors 7 | . . 1 2 4 . Matter Fused 7 | . . . . 7 . Heat Flow Errors 1 | . . . . 1 . Energy Discharges 2 | . . . . 2 . Parts Rejected 1 | . . . . 1 . Data Loss (minor) 5 | . . 1 . 4 . Misfires 1 | . . . . 1 . Targeting Errors 3 | . . . . 3 . Overload Shots . | . . . . . . Overflow Damage 11 | . . . . 11 . Projectiles 11 | . . . . 11 . Explosions . | . . . . . . Melee . | . . . . . . Knockbacks 11 | . . . . 11 . Impact . | . . . . . . Kinetic 7 | . . . . 7 . Secondary 4 | . . . . 4 . Self-Inflicted Damage . | . . . . . . Shots . | . . . . . . Rammed . | . . . . . . Targets Rammed . | . . . . . . Kicked . | . . . . . . Crushed . | . . . . . . Highest Temperature 310 | . 77 9 . 263 310 Average Temperature 75 | . 24 6 . 74 90 Received Heat Transfer 1110 | . 75 . . 90 945 Effects 4 | . . . . . 4 Interference 4 | . . . . . 4 Siege Activations . | . . . . . . Robots Corrupted . | . . . . . . Combat Hostiles . | . . . . . . Parts Fried . | . . . . . . Impact Corruptions . | . . . . . . Robots Melted . | . . . . . . Combat Hostiles . | . . . . . . Parts Melted 2 | . . . . 1 1 Heat Transferred 1665 | . . . . 148 1517 Parts Sabotaged . | . . . . . . Parts Stolen . | . . . . . . Parts Stripped . | . . . . . . Power Chain Reactions . | . . . . . . Missiles Intercepted . | . . . . . . Alert | -11 -10 -10 -10 -9 -8 ------- Run | Scr Mat Min Exi Min Mat Peak Influence 280 | 5 195 . . 280 227 Average Influence 115 | 2 117 . . 170 126 Maximum Alert Level 1 | . . . . 1 1 Low Security (%) 77 | 100 100 100 . 51 84 Level 1 22 | . . . . 48 15 Level 2 . | . . . . . . Level 3 . | . . . . . . Level 4 . | . . . . . . Level 5 . | . . . . . . High Security . | . . . . . . Max Security . | . . . . . . Squads Dispatched 4 | . 2 . . . 2 Investigation 2 | . 1 . . . 1 Extermination . | . . . . . . Reinforcement 2 | . 1 . . . 1 Assault . | . . . . . . Garrison . | . . . . . . Intercept . | . . . . . . Construction Impeded . | . . . . . . Haulers Reinforced . | . . . . . . Stealth | -11 -10 -10 -10 -9 -8 --------- Run | Scr Mat Min Exi Min Mat Distress Signals . | . . . . . . Communications Jammed . | . . . . . . Distress Signals . | . . . . . . Times Spotted 58 | . 9 . . 26 23 Peak Tracking Total 6 | . 4 . . 4 6 Tactical Retreats 2 | . . . . 1 1 Traps | -11 -10 -10 -10 -9 -8 ------- Run | Scr Mat Min Exi Min Mat Traps Triggered 2 | . . 1 . . 1 Indirectly . | . . . . . . Trap Hack Attempts . | . . . . . . Triggered . | . . . . . . Disarmed . | . . . . . . Reprogrammed 1 | . 1 . . . . Reused . | . . . . . . Traps Extracted . | . . . . . . Installed . | . . . . . . Triggered . | . . . . . . Machines | -11 -10 -10 -10 -9 -8 ---------- Run | Scr Mat Min Exi Min Mat Machines Disabled 6 | . 1 . . 3 2 Max in Single Turn 1 | . 1 . . 1 1 Machines Sabotaged . | . . . . . . Garrisons Compromised . | . . . . . . Overloaded Fab Kills . | . . . . . . Fab Network Shutdowns . | . . . . . . Hacking | -11 -10 -10 -10 -9 -8 --------- Run | Scr Mat Min Exi Min Mat Machines Accessed 9 | . 3 1 1 1 3 Terminals 6 | . 3 . . 1 2 Fabricators . | . . . . . . Repair Stations . | . . . . . . Recycling Units 1 | . . . . . 1 Scanalyzers . | . . . . . . Garrison Access . | . . . . . . Total Hacks 51 | . 13 1 23 4 10 Successful 47 | . 11 1 23 3 9 Failed 4 | . 2 . . 1 1 Catastrophic 1 | . . . . 1 . Database Lockouts . | . . . . . . Manual 2 | . . 2 . . . Terminals 22 | . 13 . . 4 5 Fabricators . | . . . . . . Repair Stations . | . . . . . . Recycling Units 5 | . . . . . 5 Scanalyzers . | . . . . . . Garrison Access . | . . . . . . Terminal Hacks 42 | . 11 1 23 3 4 Record 32 | . 5 . 23 2 2 Robot Analysis 1 | . . . . . 1 Prototype ID Bank 1 | . 1 . . . . Open Door 1 | . . 1 . . . Emergency Access Points 1 | . 1 . . . . Alert Level 1 | . 1 . . . . Locate Traps 1 | . 1 . . . . Reprogram Traps 1 | . 1 . . . . Zone Layout 3 | . 1 . . 1 1 Fabricator Hacks . | . . . . . . Repair Station Hacks . | . . . . . . Recycling Unit Hacks 5 | . . . . . 5 Recycle Component 1 | . . . . . 1 Process 2 | . . . . . 2 Report Inventory 1 | . . . . . 1 Retrieve Matter 1 | . . . . . 1 Scanalyzer . | . . . . . . Garrison Access Hacks . | . . . . . . Unauthorized Hacks . | . . . . . . Terminals . | . . . . . . Fabricators . | . . . . . . Repair Stations . | . . . . . . Recycling Units . | . . . . . . Scanalyzers . | . . . . . . Garrison Access . | . . . . . . Data Cores Recovered . | . . . . . . Used . | . . . . . . Hacking Detections 6 | . 3 . . 1 2 Full Trace Events 3 | . 1 . . 1 1 Feedback Events . | . . . . . . Feedback Blocked . | . . . . . . Robot Schematics Acquired . | . . . . . . Robots Built . | . . . . . . Matter . | . . . . . . Time . | . . . . . . Total Robot Build Rating . | . . . . . . Part Schematics Acquired . | . . . . . . Parts Built . | . . . . . . Matter . | . . . . . . Time . | . . . . . . Total Part Build Rating . | . . . . . . Parts Repaired . | . . . . . . Time . | . . . . . . Parts Recycled 1 | . . . . . 1 Recycled Matter 167 | . . . . . 167 Retrieved Matter 167 | . . . . . 167 Retrieved Components . | . . . . . . Parts Scanalyzed . | . . . . . . Part Schematics Acquired . | . . . . . . Parts Damaged . | . . . . . . Bothacking | -11 -10 -10 -10 -9 -8 ------------ Run | Scr Mat Min Exi Min Mat Used RIF Installer . | . . . . . . Robots Hacked . | . . . . . . Non-combat . | . . . . . . Combat . | . . . . . . Robot Hacks Applied . | . . . . . . Relay Couplers Released . | . . . . . . Robots Rewired . | . . . . . . Allies Hacked . | . . . . . . Hacks Repelled . | . . . . . . Allies | -11 -10 -10 -10 -9 -8 -------- Run | Scr Mat Min Exi Min Mat Total Allies 3 | . . 3 . . . Largest Group 3 | . . 3 3 3 . Highest-Rated Group 40 | . . 40 40 40 . Highest-Rated Ally 16 | . . 16 16 16 . Total Orders . | . . . . . . Ally Attacks 36 | . . . . 36 . Total Damage 339 | . . . . 339 . Kills 11 | . . . . 11 . Allies Corrupted . | . . . . . . Allies Melted . | . . . . . . Intel | -11 -10 -10 -10 -9 -8 ------- Run | Scr Mat Min Exi Min Mat Robot Analysis Total 1 | . . . . . 1 Derelict Logs Recovered 2 | . . 1 . 1 . Drone Launches . | . . . . . . Drone Recoveries . | . . . . . . Exploration | -11 -10 -10 -10 -9 -8 ------------- Run | Scr Mat Min Exi Min Mat Turns Passed 2996 | 95 400 447 357 1001 696 Spaces Moved 2127 | 85 330 408 338 568 398 Core 30 | 15 . . . 12 3 Treads . | . . . . . . Legs 187 | . . . . . 187 Wheels 1910 | 70 330 408 338 556 208 Hover . | . . . . . . Flight . | . . . . . . Fastest Speed 50 | 50 100 100 100 100 93 Average Speed 107 | 91 100 100 100 110 125 Slowest Speed 550 | 100 100 100 100 550 450 Overloaded Moves . | . . . . . . Propulsion Burnouts . | . . . . . . Robots Hopped . | . . . . . . Cave-ins Triggered 1 | . . . . 1 . Exploration Rate (%) 47 | 4 46 77 56 77 24 Regions Visited 5 Branch Regions 3 Pre-discovered Areas 2 | . . . 1 1 . Known Exits Taken 1 | . . 1 . . . Unknown Exits Taken 4 | 1 1 . 1 1 . Scrap Searched 3 | . . 1 . 2 . Spaces Dug . | . . . . . . Terrain Destroyed 6 | . . . . 6 . Melee . | . . . . . . Projectile 6 | . . . . 6 . AOE . | . . . . . . Actions | -11 -10 -10 -10 -9 -8 --------- Run | Scr Mat Min Exi Min Mat Total 2630 | 100 361 446 361 859 503 Wait 256 | . 3 27 . 223 3 Move 2122 | 84 329 407 337 567 398 Hop . | . . . . . . Pick Up 65 | 9 6 5 13 12 20 Fast Attach . | . . . . . . Attach 43 | 6 1 1 2 8 25 Detach . | . . . . . . Swap 1 | . . 1 . . . Drop 26 | . 2 4 9 4 7 Fire 113 | 1 20 1 . 45 46 Melee 4 | . . . . . 4 Ram . | . . . . . . Kick . | . . . . . . Crush . | . . . . . . Escape Stasis . | . . . . . . Rewire . | . . . . . . Trap . | . . . . . . Miscellaneous . | . . . . . . Route ------- -11/Scrapyard -10/Materials -10/Mines -10/Exiles -9/Mines -8/Materials History --------- Turn | Location | Event 31 | -11/Scrapyard | Discovered new exit (range 14) 96 | -11/Scrapyard | Entered Materials 233 | -10/Materials | Discovered new exit (range 10) 314 | -10/Materials | Build established: Mutant 496 | -10/Materials | Entered Mines 650 | -10/Mines | Met a Derelict who couldn't figure out how to use a Trap Extractor 718 | -10/Mines | Assisted by bots powering up and referring to "LRC-V3" 879 | -10/Mines | Identified exit to Exiles 925 | -10/Mines | Deemed a non-threat by the Exiles lab entrance 943 | -10/Mines | Entered Exiles 943 | -10/Exiles | Accompanied by 3 allies 1010 | -10/Exiles | Met 8R-AWN 1031 | -10/Exiles | Met EX-HEX 1121 | -10/Exiles | Met EX-DEC 1187 | -10/Exiles | Learned location of Zion (-7) 1281 | -10/Exiles | Discovered new exit (range 14) 1300 | -10/Exiles | Entered Mines 1300 | -9/Mines | Accompanied by 3 allies 1675 | -9/Mines | Crushed by falling debris 1675 | -9/Mines | Core integrity fell below 50% 1727 | -9/Mines | Learned location of Storage (-8) 2224 | -9/Mines | Discovered new exit (range 12) 2301 | -9/Mines | Entered Materials 2301 | -8/Materials | Evolved 4 slots: Power x1, Propulsion x1, Utility x2 2494 | -8/Materials | Lost 5 parts (2p2n1w) 2621 | -8/Materials | Lost 5 parts (1p1n2u1w) 2763 | -8/Materials | Build established: Scavenger-Mutant 2981 | -8/Materials | Core integrity fell below 50% 2993 | -8/Materials | Core integrity fell below 20% 2997 | -8/Materials | Destroyed by G-47 Trooper with Particle Gun Last Messages --------------- Particle Gun temporarily disabled. Adv. Signal Interpreter temporarily disabled. Aluminum Leg destroyed. Dropped Particle Gun. Bump into an enemy to attack with the active melee weapon. Even while active, melee weapons do not fire together with ranged weapons in the same volley. Aluminum Leg destroyed. Lgt. Nuclear Core destroyed. R-06 Scavenger collects Lgt. Ion Engine. Shock Rifle destroyed. Aluminum Leg destroyed. Core Shielding destroyed. R-06 Scavenger collects Flight Unit. Lgt. Nuclear Core destroyed. R-06 Scavenger collects Flight Unit. Imp. Weapon Shielding destroyed. R-06 Scavenger collects Particle Gun. Beam Rifle destroyed. Acquired 10 matter. [Achievement: First Step to Greatness] Map ----- +----------------------------------------------------+ | ?????????????????????????????????????????????????? | | ?????????????????????????????????????????????????? | | ?????????????????????????????????????????????????? | | ?????????????????????????????????????????????????? | | ?????????????????????????????????????????????????? | | ????????????????????????????????? ????????????? | | ???????????????????????????????## ????????????? | | ???????????????????????????????# """???????? | | ???????????????????????????????# ??????? | | ??????????????????????????????? ???????? | | ???????????????????????????????# ???????? | | ???????????????????????????????# ???????? | | ???????????????????????????????# ???????? | | ???????????????????????????????# #???????? | | ???????????????????????????????# / #???##### | | ???????????????????????????????# T ##### | | ???????????????????????????????# """?# | | ???????????????????????????????# R"?# " | | ???????????????????????????????# """ ""??# " | | ???????????????????????????????# """ #???# " | | ???????????????????????????????# """ #???# " | | ???????????????????????????????# !#??## " | | ???????????##################### #??# | | ?????????? gg g """ #??##] | | ?????????? """ #???##### | | ?????????? g @ k r "" #??????# | | ????????????????##### %####### %% ########[ | | ????????????????????# #?????# = !%^ | | ????????????????????#!!!!/ #?????################ | | ????????????????????#!!!!//#????????????????????# | | ????????????????????########???????###########??# | | ???????????????????????????????????# #??# | | ???????????????????????????????????# #??# | | ???????????????????????????????????# """ """ #??# | | ???????????????????????????????????# """ """ #??# | | ???????????????????????????????????# """ """ #??# | | ???????????????????????????????????# #??# | | ???????????????????????????????????# [ = #??# | | ??????????????????????????????###### % % % #??# | | ??????????????????????????????# #####+#####??# | | ??????????????????????????????#! #??# = #??# | | ??????????????????????????????# #### #??# | | ??????????????????????????????# + % #??# | | ??????????????????????????????# #### #??# | | ??????????????????????????????# #??# #### | | ??????????????????????????????# !#??# | | ??????????????????????????????# #??# | | ??????????????????????????????# #??# | | ??????????????????????????????###########+## | | ???????????????????????????????# """"" # | +----------------------------------------------------+ Best States ------------- Heat Dissipation 45 Energy Generation 23 Energy Capacity 400 Matter Stores 300 Matter Capacity 300 Sight Range 16 Terrain Scan Density 10 Armor Coverage 150 Core Shielding 20 Weapon Shielding 66 Evasion (%) 50 Offensive Hacking 10 Item Schematics ----------------- None Robot Schematics ------------------ None Fabricated ------------ Nothing Alien Tech Used ----------------- None Achievements -------------- Backstab First Step to Greatness Librarian One Hack Too Far Tourist Unlikely Earthworm Challenges ------------ None Game ------ Seed LauncherGravitonGravjet Manual? 0 Play Time 00:55:27 Cumulative 4.0 hours Start 2020.05.11 @ 16:28:25 End 2020.05.11 @ 17:54:09 Sessions 1 Manual Loads 0 Difficulty Rogue Special Mode None Game No. 6 Rogue 6 Adventurer 0 Explorer 0 Win Type - Total 0 Types 0/0/0/0/0/0/0 Lore% 6 Gallery% 9 Achievement% 6 Wizard Run 0 Options --------- ASCII 0 Keyboard 0 Movement Arrows Keybinds 0 Fullscreen 1 Font 12/Smallcaps Map View 83x54 Tactical HUD 0 Map Filters NONE Filters NONE Steam 1 RUN: ccd7408f-142b-4382-9d42-2195514f9de5